Workbook

Sheet Produktionsanlæg
A1: Produktionsanlæg | B1: Enhed | C1: Standard-levetid | D1: Samlet mængde per 31/12-2014 | E1: Samlet mængde per 31/12-2015 | F1: Bemærk-ninger
A3: Renseanlæg 1
A4: Mindre renseanlæg
A5: Mindre renseanlæg < 5.000 PE uden mulighed for opdeling | B5: PE | C5: 40 | D5: 4639 | E5: 4639 | F5: Assens
A6: Renseanlæg >= 5.000 PE, Vandbehandling
A7: Indløb med riste, Konstruktioner | B7: PE | C7: 60 | D7: -
A8: Indløb med riste, Mek/EL | B8: PE | C8: 20 | D8: -
A9: Indløb med riste, SRO | B9: PE | C9: 10 | D9: -
A10: Sand- og fedtfang, Kontruktioner | B10: PE | C10: 60 | D10: -
A11: Sand- og fedtfang, Mek/EL | B11: PE | C11: 20 | D11: -
A12: Sand- og fedtfang, SRO | B12: PE | C12: 10 | D12: -
A13: Forklaring, Konstruktioner | B13: PE | C13: 60 | D13: -
A14: Forklaring, Mek/EL | B14: PE | C14: 20 | D14: -
A15: Forklaring, SRO | B15: PE | C15: 10 | D15: -
A16: Beluftningstanke, Konstruktioner | B16: PE | C16: 60 | D16: -
A17: Beluftningstanke, Mek/EL | B17: PE | C17: 20 | D17: -
A18: Beluftningstanke, SRO | B18: PE | C18: 10 | D18: -
A19: Efterklaringstanke, Konstruktioner | B19: PE | C19: 60 | D19: -
A20: Efterklaringstanke, Mek/El | B20: PE | C20: 20 | D20: -
A21: Efterklaringstanke, SRO | B21: PE | C21: 10 | D21: -
A22: Efterbehandlingsanlæg (sandfilter), Konstruktioner | B22: PE | C22: 60 | D22: -
A23: Efterbehandlingsanlæg (sandfilter), Mek/EL | B23: PE | C23: 20 | D23: -
A24: Efterbehandlingsanlæg (sandfilter), SRO | B24: PE | C24: 10 | D24: -
A25: Renseanlæg >= 5.000 PE, Slambehandling
A26: Forafvanding, slam, Konstruktion | B26: PE | C26: 60 | D26: -
A27: Forafvanding, slam, Mek/EL | B27: PE | C27: 20 | D27: -
A28: Forafvanding, slam, SRO | B28: PE | C28: 10 | D28: -
A29: Rådnetanke, slam, Konstruktioner | B29: PE | C29: 60 | D29: -
A30: Rådnetanke, slam, Mek/EL | B30: PE | C30: 20 | D30: -
A31: Rådnetanke, slam, SRO | B31: PE | C31: 10 | D31: -
A32: Gasdisponering, Konstruktioner | B32: PE | C32: 60 | D32: -
A33: Gasdisponering, Mek/EL | B33: PE | C33: 20 | D33: -
A34: Gasdisponering, SRO | B34: PE | C34: 10 | D34: -
A35: Gasdisponering - elproduktionsanlæg, Konstruktioner | B35: PE | C35: 60 | D35: -
A36: Gasdisponering - elproduktionsanlæg, Mek/EL | B36: PE | C36: 20 | D36: -
A37: Gasdisponering - elproduktionsanlæg, SRO | B37: PE | C37: 10 | D37: -
A38: Slutafvanding, slam - lavteknologisk (slambede), Konstruktioner | B38: PE | C38: 60 | D38: -
A39: Slutafvanding, slam - lavteknologisk (slambede), Mek/EL | B39: PE | C39: 20 | D39: -
A40: Slutafvanding, slam - lavteknologisk (slambede), SRO | B40: PE | C40: 10 | D40: -
A41: Slutafvanding, slam - højteknologisk (centrifuger), Konstruktioner | B41: PE | C41: 60 | D41: -
A42: Slutafvanding, slam - højteknologisk (centrifuger), Mek/El | B42: PE | C42: 20 | D42: -
A43: Slutafvanding, slam - højteknologisk (centrifuger), SRO | B43: PE | C43: 10 | D43: -
A44: Renseanlæg >= 5.000 PE, Slamdisponering
A45: Slutdisponering, slam - lavteknologisk (slammineralisering), Konstruktioner | B45: PE | C45: 60 | D45: -
A46: Slutdisponering, slam - lavteknologisk (slammineralisering), Mek/EL | B46: PE | C46: 20 | D46: -
A47: Slutdisponering, slam - lavteknologisk (slammineralisering), SRO | B47: PE | C47: 10 | D47: -
A48: Slutdisponering, slam - højteknologisk (slamtørring), Konstruktioner | B48: PE | C48: 60 | D48: -
A49: Slutdisponering, slam - højteknologisk (slamtørring), Mek/EL | B49: PE | C49: 20 | D49: -
A50: Slutdisponering, slam - højteknologisk (slamtørring), SRO | B50: PE | C50: 10 | D50: -
A51: Slutdisponering, slam - højteknologisk (slamtørring og -forbrænding), Konstruktioner | B51: PE | C51: 60 | D51: -
A52: Slutdisponering, slam - højteknologisk (slamtørring og -forbrænding), Mek/EL | B52: PE | C52: 20 | D52: -
A53: Slutdisponering, slam - højteknologisk (slamtørring og -forbrænding), SRO | B53: PE | C53: 10 | D53: -
A54: Renseanlæg 2
A55: Mindre renseanlæg
A56: Mindre renseanlæg < 5.000 PE uden mulighed for opdeling | B56: PE | C56: 40 | D56: -
A57: Renseanlæg >= 5.000 PE, Vandbehandling | D57: -
A58: Indløb med riste, Konstruktioner | B58: PE | C58: 60 | D58: -
A59: Indløb med riste, Mek/EL | B59: PE | C59: 20 | D59: -
A60: Indløb med riste, SRO | B60: PE | C60: 10 | D60: -
A61: Sand- og fedtfang, Kontruktioner | B61: PE | C61: 60 | D61: -
A62: Sand- og fedtfang, Mek/EL | B62: PE | C62: 20 | D62: -
A63: Sand- og fedtfang, SRO | B63: PE | C63: 10 | D63: -
A64: Forklaring, Konstruktioner | B64: PE | C64: 60 | D64: -
A65: Forklaring, Mek/EL | B65: PE | C65: 20 | D65: -
A66: Forklaring, SRO | B66: PE | C66: 10 | D66: -
A67: Beluftningstanke, Konstruktioner | B67: PE | C67: 60 | D67: -
A68: Beluftningstanke, Mek/EL | B68: PE | C68: 20 | D68: -
A69: Beluftningstanke, SRO | B69: PE | C69: 10 | D69: -
A70: Efterklaringstanke, Konstruktioner | B70: PE | C70: 60 | D70: -
A71: Efterklaringstanke, Mek/El | B71: PE | C71: 20 | D71: -
A72: Efterklaringstanke, SRO | B72: PE | C72: 10 | D72: -
A73: Efterbehandlingsanlæg (sandfilter), Konstruktioner | B73: PE | C73: 60 | D73: -
A74: Efterbehandlingsanlæg (sandfilter), Mek/EL | B74: PE | C74: 20 | D74: -
A75: Efterbehandlingsanlæg (sandfilter), SRO | B75: PE | C75: 10 | D75: -
A76: Renseanlæg >= 5.000 PE, Slambehandling | D76: -
A77: Forafvanding, slam, Konstruktion | B77: PE | C77: 60 | D77: -
A78: Forafvanding, slam, Mek/EL | B78: PE | C78: 20 | D78: -
A79: Forafvanding, slam, SRO | B79: PE | C79: 10 | D79: -
A80: Rådnetanke, slam, Konstruktioner | B80: PE | C80: 60 | D80: -
A81: Rådnetanke, slam, Mek/EL | B81: PE | C81: 20 | D81: -
A82: Rådnetanke, slam, SRO | B82: PE | C82: 10 | D82: -
A83: Gasdisponering, Konstruktioner | B83: PE | C83: 60 | D83: -
A84: Gasdisponering, Mek/EL | B84: PE | C84: 20 | D84: -
A85: Gasdisponering, SRO | B85: PE | C85: 10 | D85: -
A86: Gasdisponering - elproduktionsanlæg, Konstruktioner | B86: PE | C86: 60 | D86: -
A87: Gasdisponering - elproduktionsanlæg, Mek/EL | B87: PE | C87: 20 | D87: -
A88: Gasdisponering - elproduktionsanlæg, SRO | B88: PE | C88: 10 | D88: -
A89: Slutafvanding, slam - lavteknologisk (slambede), Konstruktioner | B89: PE | C89: 60 | D89: -
A90: Slutafvanding, slam - lavteknologisk (slambede), Mek/EL | B90: PE | C90: 20 | D90: -
A91: Slutafvanding, slam - lavteknologisk (slambede), SRO | B91: PE | C91: 10 | D91: -
A92: Slutafvanding, slam - højteknologisk (centrifuger), Konstruktioner | B92: PE | C92: 60 | D92: -
A93: Slutafvanding, slam - højteknologisk (centrifuger), Mek/El | B93: PE | C93: 20 | D93: -
A94: Slutafvanding, slam - højteknologisk (centrifuger), SRO | B94: PE | C94: 10 | D94: -
A95: Renseanlæg >= 5.000 PE, Slamdisponering | D95: -
A96: Slutdisponering, slam - lavteknologisk (slammineralisering), Konstruktioner | B96: PE | C96: 60 | D96: -
A97: Slutdisponering, slam - lavteknologisk (slammineralisering), Mek/EL | B97: PE | C97: 20 | D97: -
A98: Slutdisponering, slam - lavteknologisk (slammineralisering), SRO | B98: PE | C98: 10 | D98: -
A99: Slutdisponering, slam - højteknologisk (slamtørring), Konstruktioner | B99: PE | C99: 60 | D99: -
A100: Slutdisponering, slam - højteknologisk (slamtørring), Mek/EL | B100: PE | C100: 20 | D100: -
A101: Slutdisponering, slam - højteknologisk (slamtørring), SRO | B101: PE | C101: 10 | D101: -
A102: Slutdisponering, slam - højteknologisk (slamtørring og -forbrænding), Konstruktioner | B102: PE | C102: 60 | D102: -
A103: Slutdisponering, slam - højteknologisk (slamtørring og -forbrænding), Mek/EL | B103: PE | C103: 20 | D103: -
A104: Slutdisponering, slam - højteknologisk (slamtørring og -forbrænding), SRO | B104: PE | C104: 10 | D104: -
A105: Renseanlæg 3 | D105: -
A106: Mindre renseanlæg | D106: -
A107: Mindre renseanlæg < 5.000 PE uden mulighed for opdeling | B107: PE | C107: 40 | D107: -
A108: Renseanlæg >= 5.000 PE, Vandbehandling | D108: -
A109: Indløb med riste, Konstruktioner | B109: PE | C109: 60 | D109: -
A110: Indløb med riste, Mek/EL | B110: PE | C110: 20 | D110: -
A111: Indløb med riste, SRO | B111: PE | C111: 10 | D111: -
A112: Sand- og fedtfang, Kontruktioner | B112: PE | C112: 60 | D112: -
A113: Sand- og fedtfang, Mek/EL | B113: PE | C113: 20 | D113: -
A114: Sand- og fedtfang, SRO | B114: PE | C114: 10 | D114: -
A115: Forklaring, Konstruktioner | B115: PE | C115: 60 | D115: -
A116: Forklaring, Mek/EL | B116: PE | C116: 20 | D116: -
A117: Forklaring, SRO | B117: PE | C117: 10 | D117: -
A118: Beluftningstanke, Konstruktioner | B118: PE | C118: 60 | D118: -
A119: Beluftningstanke, Mek/EL | B119: PE | C119: 20 | D119: -
A120: Beluftningstanke, SRO | B120: PE | C120: 10 | D120: -
A121: Efterklaringstanke, Konstruktioner | B121: PE | C121: 60 | D121: -
A122: Efterklaringstanke, Mek/El | B122: PE | C122: 20 | D122: -
A123: Efterklaringstanke, SRO | B123: PE | C123: 10 | D123: -
A124: Efterbehandlingsanlæg (sandfilter), Konstruktioner | B124: PE | C124: 60 | D124: -
A125: Efterbehandlingsanlæg (sandfilter), Mek/EL | B125: PE | C125: 20 | D125: -
A126: Efterbehandlingsanlæg (sandfilter), SRO | B126: PE | C126: 10 | D126: -
A127: Renseanlæg >= 5.000 PE, Slambehandling | D127: -
A128: Forafvanding, slam, Konstruktion | B128: PE | C128: 60 | D128: -
A129: Forafvanding, slam, Mek/EL | B129: PE | C129: 20 | D129: -
A130: Forafvanding, slam, SRO | B130: PE | C130: 10 | D130: -
A131: Rådnetanke, slam, Konstruktioner | B131: PE | C131: 60 | D131: -
A132: Rådnetanke, slam, Mek/EL | B132: PE | C132: 20 | D132: -
A133: Rådnetanke, slam, SRO | B133: PE | C133: 10 | D133: -
A134: Gasdisponering, Konstruktioner | B134: PE | C134: 60 | D134: -
A135: Gasdisponering, Mek/EL | B135: PE | C135: 20 | D135: -
A136: Gasdisponering, SRO | B136: PE | C136: 10 | D136: -
A137: Gasdisponering - elproduktionsanlæg, Konstruktioner | B137: PE | C137: 60 | D137: -
A138: Gasdisponering - elproduktionsanlæg, Mek/EL | B138: PE | C138: 20 | D138: -
A139: Gasdisponering - elproduktionsanlæg, SRO | B139: PE | C139: 10 | D139: -
A140: Slutafvanding, slam - lavteknologisk (slambede), Konstruktioner | B140: PE | C140: 60 | D140: -
A141: Slutafvanding, slam - lavteknologisk (slambede), Mek/EL | B141: PE | C141: 20 | D141: -
A142: Slutafvanding, slam - lavteknologisk (slambede), SRO | B142: PE | C142: 10 | D142: -
A143: Slutafvanding, slam - højteknologisk (centrifuger), Konstruktioner | B143: PE | C143: 60 | D143: -
A144: Slutafvanding, slam - højteknologisk (centrifuger), Mek/El | B144: PE | C144: 20 | D144: -
A145: Slutafvanding, slam - højteknologisk (centrifuger), SRO | B145: PE | C145: 10 | D145: -
A146: Renseanlæg >= 5.000 PE, Slamdisponering | D146: -
A147: Slutdisponering, slam - lavteknologisk (slammineralisering), Konstruktioner | B147: PE | C147: 60 | D147: -
A148: Slutdisponering, slam - lavteknologisk (slammineralisering), Mek/EL | B148: PE | C148: 20 | D148: -
A149: Slutdisponering, slam - lavteknologisk (slammineralisering), SRO | B149: PE | C149: 10 | D149: -
A150: Slutdisponering, slam - højteknologisk (slamtørring), Konstruktioner | B150: PE | C150: 60 | D150: -
A151: Slutdisponering, slam - højteknologisk (slamtørring), Mek/EL | B151: PE | C151: 20 | D151: -
A152: Slutdisponering, slam - højteknologisk (slamtørring), SRO | B152: PE | C152: 10 | D152: -
A153: Slutdisponering, slam - højteknologisk (slamtørring og -forbrænding), Konstruktioner | B153: PE | C153: 60 | D153: -
A154: Slutdisponering, slam - højteknologisk (slamtørring og -forbrænding), Mek/EL | B154: PE | C154: 20 | D154: -
A155: Slutdisponering, slam - højteknologisk (slamtørring og -forbrænding), SRO | B155: PE | C155: 10 | D155: -
A156: Renseanlæg 4 | D156: -
A157: Mindre renseanlæg | D157: -
A158: Mindre renseanlæg < 5.000 PE uden mulighed for opdeling | B158: PE | C158: 40 | D158: -
A159: Renseanlæg >= 5.000 PE, Vandbehandling | D159: -
A160: Indløb med riste, Konstruktioner | B160: PE | C160: 60 | D160: -
A161: Indløb med riste, Mek/EL | B161: PE | C161: 20 | D161: -
A162: Indløb med riste, SRO | B162: PE | C162: 10 | D162: -
A163: Sand- og fedtfang, Kontruktioner | B163: PE | C163: 60 | D163: -
A164: Sand- og fedtfang, Mek/EL | B164: PE | C164: 20 | D164: -
A165: Sand- og fedtfang, SRO | B165: PE | C165: 10 | D165: -
A166: Forklaring, Konstruktioner | B166: PE | C166: 60 | D166: -
A167: Forklaring, Mek/EL | B167: PE | C167: 20 | D167: -
A168: Forklaring, SRO | B168: PE | C168: 10 | D168: -
A169: Beluftningstanke, Konstruktioner | B169: PE | C169: 60 | D169: -
A170: Beluftningstanke, Mek/EL | B170: PE | C170: 20 | D170: -
A171: Beluftningstanke, SRO | B171: PE | C171: 10 | D171: -
A172: Efterklaringstanke, Konstruktioner | B172: PE | C172: 60 | D172: -
A173: Efterklaringstanke, Mek/El | B173: PE | C173: 20 | D173: -
A174: Efterklaringstanke, SRO | B174: PE | C174: 10 | D174: -
A175: Efterbehandlingsanlæg (sandfilter), Konstruktioner | B175: PE | C175: 60 | D175: -
A176: Efterbehandlingsanlæg (sandfilter), Mek/EL | B176: PE | C176: 20 | D176: -
A177: Efterbehandlingsanlæg (sandfilter), SRO | B177: PE | C177: 10 | D177: -
A178: Renseanlæg >= 5.000 PE, Slambehandling | D178: -
A179: Forafvanding, slam, Konstruktion | B179: PE | C179: 60 | D179: -
A180: Forafvanding, slam, Mek/EL | B180: PE | C180: 20 | D180: -
A181: Forafvanding, slam, SRO | B181: PE | C181: 10 | D181: -
A182: Rådnetanke, slam, Konstruktioner | B182: PE | C182: 60 | D182: -
A183: Rådnetanke, slam, Mek/EL | B183: PE | C183: 20 | D183: -
A184: Rådnetanke, slam, SRO | B184: PE | C184: 10 | D184: -
A185: Gasdisponering, Konstruktioner | B185: PE | C185: 60 | D185: -
A186: Gasdisponering, Mek/EL | B186: PE | C186: 20 | D186: -
A187: Gasdisponering, SRO | B187: PE | C187: 10 | D187: -
A188: Gasdisponering - elproduktionsanlæg, Konstruktioner | B188: PE | C188: 60 | D188: -
A189: Gasdisponering - elproduktionsanlæg, Mek/EL | B189: PE | C189: 20 | D189: -
A190: Gasdisponering - elproduktionsanlæg, SRO | B190: PE | C190: 10 | D190: -
A191: Slutafvanding, slam - lavteknologisk (slambede), Konstruktioner | B191: PE | C191: 60 | D191: -
A192: Slutafvanding, slam - lavteknologisk (slambede), Mek/EL | B192: PE | C192: 20 | D192: -
A193: Slutafvanding, slam - lavteknologisk (slambede), SRO | B193: PE | C193: 10 | D193: -
A194: Slutafvanding, slam - højteknologisk (centrifuger), Konstruktioner | B194: PE | C194: 60 | D194: -
A195: Slutafvanding, slam - højteknologisk (centrifuger), Mek/El | B195: PE | C195: 20 | D195: -
A196: Slutafvanding, slam - højteknologisk (centrifuger), SRO | B196: PE | C196: 10 | D196: -
A197: Renseanlæg >= 5.000 PE, Slamdisponering | D197: -
A198: Slutdisponering, slam - lavteknologisk (slammineralisering), Konstruktioner | B198: PE | C198: 60 | D198: -
A199: Slutdisponering, slam - lavteknologisk (slammineralisering), Mek/EL | B199: PE | C199: 20 | D199: -
A200: Slutdisponering, slam - lavteknologisk (slammineralisering), SRO | B200: PE | C200: 10 | D200: -
A201: Slutdisponering, slam - højteknologisk (slamtørring), Konstruktioner | B201: PE | C201: 60 | D201: -
... 362 more rows

Sheet Distributionsanlæg
A1: Distributionsanlæg | B1: Enhed | C1: Standard-levetid | D1: Samlet mængde per 31/12-2014 | E1: Samlet mængde per 31/12-2015 | F1: Bemærk-ninger
A3: Ledningsnet - Land
A4: Ledningsnet ≤ Ø 200 mm | B4: meter | C4: 75 | D4: 283526 | E4: =+D4+14.203-5125 -> 278415.203
A5: Ø 200 mm < Ledningsnet ≤ Ø 500 mm | B5: meter | C5: 75 | D5: 164235 | E5: =+D5+1.187 -> 164236.187
A6: Ø 500 mm < Ledningsnet ≤ Ø 800 mm | B6: meter | C6: 75 | D6: 30181 | E6: =+D6 -> 30181
A7: Ø 800 mm < Ledningsnet ≤ Ø 1000 mm | B7: meter | C7: 75 | D7: 1119 | E7: 1119
A8: Ø 1000 mm < Ledningsnet ≤ Ø 1200 mm | B8: meter | C8: 75 | D8: 881 | E8: 881
A9: Ø 1200 mm < Ledningsnet ≤ Ø 1600 mm | B9: meter | C9: 75 | D9: 258 | E9: 258
A10: Ledningsnet > Ø 1600 mm (rørbassiner og transportledninger) | B10: meter | C10: 75 | D10: 0 | E10: 0
A11: Strømpeforing ≤ Ø 200 mm | B11: meter | C11: 50 | D11: 0 | E11: 0
A12: Strømpeforing Ø 200 mm < Ledningsnet ≤ Ø 500 mm | B12: meter | C12: 50 | D12: 0 | E12: 0
A13: Strømpeforing Ø 500 mm < Ledningsnet ≤ Ø 800 mm | B13: meter | C13: 50 | D13: 0 | E13: 0
A14: Strømpeforing Ø 800 mm < Ledningsnet ≤ Ø 1000 mm | B14: meter | C14: 50 | D14: 0 | E14: 0
A15: Strømpeforing Ø 1000 mm < Ledningsnet ≤ Ø 1200 mm | B15: meter | C15: 50 | D15: 0 | E15: 0
A16: Strømpeforing Ø 1200 mm < Ledningsnet ≤ Ø 1600 mm | B16: meter | C16: 50 | D16: 0 | E16: 0
A17: Ledningsnet - By | D17: 0 | E17: 0
A18: Ledningsnet ≤ Ø 200 mm | B18: meter | C18: 75 | D18: 368188 | E18: =+D18+120-22684 -> 345624
A19: Ø 200 mm < Ledningsnet ≤ Ø 500 mm | B19: meter | C19: 75 | D19: 173592 | E19: =+D19+1165+272 -> 175029
A20: Ø 500 mm < Ledningsnet ≤ Ø 800 mm | B20: meter | C20: 75 | D20: 45542 | E20: 45542
A21: Ø 800 mm < Ledningsnet ≤ Ø 1000 mm | B21: meter | C21: 75 | D21: 7606 | E21: 7606
A22: Ø 1000 mm < Ledningsnet ≤ Ø 1200 mm | B22: meter | C22: 75 | D22: 4538 | E22: 4538
A23: Ø 1200 mm < Ledningsnet ≤ Ø 1600 mm | B23: meter | C23: 75 | D23: 511 | E23: 511
A24: Ledningsnet > Ø 1600 mm (rørbassiner og transportledninger) | B24: meter | C24: 75 | D24: 0 | E24: 0
A25: Strømpeforing ≤ Ø 200 mm | B25: meter | C25: 50 | D25: 0 | E25: 0
A26: Strømpeforing Ø 200 mm < Ledningsnet ≤ Ø 500 mm | B26: meter | C26: 50 | D26: 200 | E26: 200
A27: Strømpeforing Ø 500 mm < Ledningsnet ≤ Ø 800 mm | B27: meter | C27: 50 | D27: 0 | E27: 0
A28: Strømpeforing Ø 800 mm < Ledningsnet ≤ Ø 1000 mm | B28: meter | C28: 50 | D28: 0 | E28: 0
A29: Strømpeforing Ø 1000 mm < Ledningsnet ≤ Ø 1200 mm | B29: meter | C29: 50 | D29: 0 | E29: 0
A30: Strømpeforing Ø 1200 mm < Ledningsnet ≤ Ø 1600 mm | B30: meter | C30: 50 | D30: 0 | E30: 0
A31: Ledningsnet - City | D31: 0 | E31: 0
A32: Ledningsnet ≤ Ø 200 mm | B32: meter | C32: 75 | D32: 5611 | E32: 5611
A33: Ø 200 mm < Ledningsnet ≤ Ø 500 mm | B33: meter | C33: 75 | D33: 9450 | E33: =+D33+39 -> 9489
A34: Ø 500 mm < Ledningsnet ≤ Ø 800 mm | B34: meter | C34: 75 | D34: 0 | E34: 0
A35: Ø 800 mm < Ledningsnet ≤ Ø 1000 mm | B35: meter | C35: 75 | D35: 0 | E35: 0
A36: Ø 1000 mm < Ledningsnet ≤ Ø 1200 mm | B36: meter | C36: 75 | D36: 0 | E36: 0
A37: Ø 1200 mm < Ledningsnet ≤ Ø 1600 mm | B37: meter | C37: 75 | D37: 0 | E37: 0
A38: Ledningsnet > Ø 1600 mm (rørbassiner og transportledninger) | B38: meter | C38: 75 | D38: 0 | E38: 0
A39: Strømpeforing ≤ Ø 200 mm | B39: meter | C39: 50 | D39: 0 | E39: 0
A40: Strømpeforing Ø 200 mm < Ledningsnet ≤ Ø 500 mm | B40: meter | C40: 50 | D40: 0 | E40: 0
A41: Strømpeforing Ø 500 mm < Ledningsnet ≤ Ø 800 mm | B41: meter | C41: 50 | D41: 0 | E41: 0
A42: Strømpeforing Ø 800 mm < Ledningsnet ≤ Ø 1000 mm | B42: meter | C42: 50 | D42: 0 | E42: 0
A43: Strømpeforing Ø 1000 mm < Ledningsnet ≤ Ø 1200 mm | B43: meter | C43: 50 | D43: 0 | E43: 0
A44: Strømpeforing Ø 1200 mm < Ledningsnet ≤ Ø 1600 mm | B44: meter | C44: 50 | D44: 0 | E44: 0
A45: Ledningsnet - Indre city | D45: 0 | E45: 0
A46: Ledningsnet ≤ Ø 200 mm | B46: meter | C46: 75 | D46: 0 | E46: 0
A47: Ø 200 mm < Ledningsnet ≤ Ø 500 mm | B47: meter | C47: 75 | D47: 0 | E47: 0
A48: Ø 500 mm < Ledningsnet ≤ Ø 800 mm | B48: meter | C48: 75 | D48: 0 | E48: 0
A49: Ø 800 mm < Ledningsnet ≤ Ø 1000 mm | B49: meter | C49: 75 | D49: 0 | E49: 0
A50: Ø 1000 mm < Ledningsnet ≤ Ø 1200 mm | B50: meter | C50: 75 | D50: 0 | E50: 0
A51: Ø 1200 mm < Ledningsnet ≤ Ø 1600 mm | B51: meter | C51: 75 | D51: 0 | E51: 0
A52: Ledningsnet > Ø 1600 mm (rørbassiner og transportledninger) | B52: meter | C52: 75 | D52: 0 | E52: 0
A53: Strømpeforing ≤ Ø 200 mm | B53: meter | C53: 50 | D53: 0 | E53: 0
A54: Strømpeforing Ø 200 mm < Ledningsnet ≤ Ø 500 mm | B54: meter | C54: 50 | D54: 0 | E54: 0
A55: Strømpeforing Ø 500 mm < Ledningsnet ≤ Ø 800 mm | B55: meter | C55: 50 | D55: 0 | E55: 0
A56: Strømpeforing Ø 800 mm < Ledningsnet ≤ Ø 1000 mm | B56: meter | C56: 50 | D56: 0 | E56: 0
A57: Strømpeforing Ø 1000 mm < Ledningsnet ≤ Ø 1200 mm | B57: meter | C57: 50 | D57: 0 | E57: 0
A58: Strømpeforing Ø 1200 mm < Ledningsnet ≤ Ø 1600 mm | B58: meter | C58: 50 | D58: 0 | E58: 0
A59: Brønde og stik, ledningsnet - Land | D59: 0 | E59: 0
A60: Brønde | B60: stk. | C60: 75 | D60: 4101 | E60: =+D60+50 -> 4151
A61: Stik | B61: stk. | C61: 75 | D61: 5920 | E61: =+D61+200 -> 6120
A62: Brønde og stik, ledningsnet - By | D62: 0 | E62: 0
A63: Brønde | B63: stk. | C63: 75 | D63: 12863 | E63: =+D63+50 -> 12913
A64: Stik | B64: stk. | C64: 75 | D64: 34147 | E64: =+D64+100 -> 34247
A65: Brønde og stik, ledningsnet - City | D65: 0 | E65: 0
A66: Brønde | B66: stk. | C66: 75 | D66: 200 | E66: 200
A67: Stik | B67: stk. | C67: 75 | D67: 100 | E67: 100
A68: Brønde og stik, ledningsnet - Indre city | D68: 0 | E68: 0
A69: Brønde | B69: stk. | C69: 75 | D69: 0 | E69: =+D69 -> 0
A70: Stik | B70: stk. | C70: 75 | D70: 0 | E70: 0
A71: Små pumpestationer inkl. SRO-anlæg - Land | D71: 0 | E71: 0
A72: Tryksatte minipumpestationer (husstandssystemer) | B72: stk. | C72: 30 | D72: 0 | E72: 0
A73: Pumpestationer i brønde (< 6,25 m2), Konstruktioner | B73: stk. | C73: 50 | D73: 25 | E73: 25
A74: Pumpestationer i brønde (< 6,25 m2), Mek/EL | B74: stk. | C74: 20 | D74: 39 | E74: 25
A75: Pumpestationer i brønde (< 6,25 m2), SRO | B75: stk. | C75: 10 | D75: 39 | E75: 25
A76: Pumpestationer m. overbygning (< 20 m2), Konstruktioner | B76: stk. | C76: 50 | D76: 27 | E76: 35
A77: Pumpestationer m. overbygning (< 20 m2), Mek/EL | B77: stk. | C77: 20 | D77: 53 | E77: 35
A78: Pumpestationer m. overbygning (< 20 m2), SRO | B78: stk. | C78: 10 | D78: 53 | E78: 35
A79: Pumpestationer i underjordiske bygværker (<50 m2), Konstruktioner | B79: stk. | C79: 50 | D79: 17 | E79: 25
A80: Pumpestationer i underjordiske bygværker (<50 m2), Mek/El | B80: stk. | C80: 20 | D80: 32 | E80: 25
A81: Pumpestationer i underjordiske bygværker (<50 m2), SRO | B81: stk. | C81: 10 | D81: 32 | E81: 25
A82: Små pumpestationer inkl. SRO-anlæg - By | D82: 0 | E82: 0
A83: Tryksatte minipumpestationer (husstandssystemer) | B83: stk. | C83: 30 | D83: 2 | E83: 4
A84: Pumpestationer i brønde (< 6,25 m2), Konstruktioner | B84: stk. | C84: 50 | D84: 53 | E84: =43+7+1 -> 51
A85: Pumpestationer i brønde (< 6,25 m2), Mek/EL | B85: stk. | C85: 20 | D85: 83 | E85: =43+7+1 -> 51
A86: Pumpestationer i brønde (< 6,25 m2), SRO | B86: stk. | C86: 10 | D86: 83 | E86: 51
A87: Pumpestationer m. overbygning (< 20 m2), Konstruktioner | B87: stk. | C87: 50 | D87: 26 | E87: =35+2 -> 37
A88: Pumpestationer m. overbygning (< 20 m2), Mek/EL | B88: stk. | C88: 20 | D88: 45 | E88: =35+2 -> 37
A89: Pumpestationer m. overbygning (< 20 m2), SRO | B89: stk. | C89: 10 | D89: 44 | E89: 37
A90: Pumpestationer i underjordiske bygværker (<50 m2), Konstruktioner | B90: stk. | C90: 50 | D90: 20 | E90: 30
A91: Pumpestationer i underjordiske bygværker (<50 m2), Mek/El | B91: stk. | C91: 20 | D91: 38 | E91: 30
A92: Pumpestationer i underjordiske bygværker (<50 m2), SRO | B92: stk. | C92: 10 | D92: 38 | E92: 30
A93: Små pumpestationer inkl. SRO-anlæg - City | D93: 0 | E93: 0
A94: Tryksatte minipumpestationer (husstandssystemer) | B94: stk. | C94: 30 | D94: 0 | E94: 0
A95: Pumpestationer i brønde (< 6,25 m2), Konstruktioner | B95: stk. | C95: 50 | D95: 0 | E95: 0
A96: Pumpestationer i brønde (< 6,25 m2), Mek/EL | B96: stk. | C96: 20 | D96: 0 | E96: 0
A97: Pumpestationer i brønde (< 6,25 m2), SRO | B97: stk. | C97: 10 | D97: 0 | E97: 0
A98: Pumpestationer m. overbygning (< 20 m2), Konstruktioner | B98: stk. | C98: 50 | D98: 0 | E98: 0
A99: Pumpestationer m. overbygning (< 20 m2), Mek/EL | B99: stk. | C99: 20 | D99: 0 | E99: 0
A100: Pumpestationer m. overbygning (< 20 m2), SRO | B100: stk. | C100: 10 | D100: 0 | E100: 0
A101: Pumpestationer i underjordiske bygværker (<50 m2), Konstruktioner | B101: stk. | C101: 50 | D101: 0 | E101: 0
A102: Pumpestationer i underjordiske bygværker (<50 m2), Mek/El | B102: stk. | C102: 20 | D102: 0 | E102: 0
A103: Pumpestationer i underjordiske bygværker (<50 m2), SRO | B103: stk. | C103: 10 | D103: 0 | E103: 0
A104: Små pumpestationer inkl. SRO-anlæg - Indre city | D104: 0 | E104: 0
A105: Tryksatte minipumpestationer (husstandssystemer) | B105: stk. | C105: 30 | D105: 0 | E105: 0
A106: Pumpestationer i brønde (< 6,25 m2), Konstruktioner | B106: stk. | C106: 50 | D106: 0 | E106: 0
A107: Pumpestationer i brønde (< 6,25 m2), Mek/EL | B107: stk. | C107: 20 | D107: 0 | E107: 0
A108: Pumpestationer i brønde (< 6,25 m2), SRO | B108: stk. | C108: 10 | D108: 0 | E108: 0
A109: Pumpestationer m. overbygning (< 20 m2), Konstruktioner | B109: stk. | C109: 50 | D109: 0 | E109: 0
A110: Pumpestationer m. overbygning (< 20 m2), Mek/EL | B110: stk. | C110: 20 | D110: 0 | E110: 0
A111: Pumpestationer m. overbygning (< 20 m2), SRO | B111: stk. | C111: 10 | D111: 0 | E111: 0
A112: Pumpestationer i underjordiske bygværker (<50 m2), Konstruktioner | B112: stk. | C112: 50 | D112: 0 | E112: 0
A113: Pumpestationer i underjordiske bygværker (<50 m2), Mek/El | B113: stk. | C113: 20 | D113: 0 | E113: 0
A114: Pumpestationer i underjordiske bygværker (<50 m2), SRO | B114: stk. | C114: 10 | D114: 0 | E114: 0
A115: Store pumpestationer: inkl. SRO-anlæg - Land | D115: 0 | E115: 0
A116: Kælder | B116: m2 | C116: 75 | D116: 100 | E116: 130
A117: Pumpeinstallation Miljøklasse A (100-300 l/s) - Mek/EL | B117: stk. | C117: 20 | D117: 4 | E117: 4
A118: Pumpeinstallation Miljøklasse A (100-300 l/s) - SRO | B118: stk. | C118: 10 | D118: 4 | E118: 4
A119: Pumpeinstallation Miljøklasse A (300-600 l/s) - Mek/EL | B119: stk. | C119: 20 | D119: 0 | E119: 0
A120: Pumpeinstallation Miljøklasse A (300-600 l/s) - SRO | B120: stk. | C120: 10 | D120: 0 | E120: 0
A121: Pumpeinstallation Miljøklasse A (600-1.000 l/s) - Mek/EL | B121: stk. | C121: 20 | D121: 0 | E121: 0
A122: Pumpeinstallation Miljøklasse A (600-1.000 l/s) - SRO | B122: stk. | C122: 10 | D122: 0 | E122: 0
A123: Pumpeinstallation Miljøklasse A (1.000-1.500 l/s) - Mek/EL | B123: stk. | C123: 20 | D123: 0 | E123: 0
A124: Pumpeinstallation Miljøklasse A (1.000-1.500 l/s) - SRO | B124: stk. | C124: 10 | D124: 0 | E124: 0
A125: Pumpeinstallation Miljøklasse B (100-300 l/s) - Mek/EL | B125: stk. | C125: 20 | D125: 6 | E125: 6
A126: Pumpeinstallation Miljøklasse B (100-300 l/s) - SRO | B126: stk. | C126: 10 | D126: 6 | E126: 6
A127: Pumpeinstallation Miljøklasse B (300-600 l/s) - Mek/EL | B127: stk. | C127: 20 | D127: 0 | E127: 0
A128: Pumpeinstallation Miljøklasse B (300-600 l/s) - SRO | B128: stk. | C128: 10 | D128: 0 | E128: 0
A129: Pumpeinstallation Miljøklasse B (600-1.000 l/s) - Mek/EL | B129: stk. | C129: 20 | D129: 0 | E129: 0
A130: Pumpeinstallation Miljøklasse B (600-1.000 l/s) - SRO | B130: stk. | C130: 10 | D130: 0 | E130: 0
A131: Pumpeinstallation Miljøklasse B (1.000-1.500 l/s) - Mek/EL | B131: stk. | C131: 20 | D131: 0 | E131: 0
A132: Pumpeinstallation Miljøklasse B (1.000-1.500 l/s) - SRO | B132: stk. | C132: 10 | D132: 0 | E132: 0
A133: Overbygning | B133: m2 | C133: 75 | D133: 56 | E133: =+D133 -> 56
A134: Store pumpestationer: inkl. SRO-anlæg - By | D134: 0 | E134: 0
A135: Kælder | B135: m2 | C135: 75 | D135: 263 | E135: 263
A136: Pumpeinstallation Miljøklasse A (100-300 l/s) - Mek/EL | B136: stk. | C136: 20 | D136: 4 | E136: =+D136+2 -> 6
A137: Pumpeinstallation Miljøklasse A (100-300 l/s) - SRO | B137: stk. | C137: 10 | D137: 4 | E137: =+D137+2 -> 6
A138: Pumpeinstallation Miljøklasse A (300-600 l/s) - Mek/EL | B138: stk. | C138: 20 | D138: 0 | E138: 0
A139: Pumpeinstallation Miljøklasse A (300-600 l/s) - SRO | B139: stk. | C139: 10 | D139: 0 | E139: 0
A140: Pumpeinstallation Miljøklasse A (600-1.000 l/s) - Mek/EL | B140: stk. | C140: 20 | D140: 0 | E140: 0
A141: Pumpeinstallation Miljøklasse A (600-1.000 l/s) - SRO | B141: stk. | C141: 10 | D141: 0 | E141: 0
A142: Pumpeinstallation Miljøklasse A (1.000-1.500 l/s) - Mek/EL | B142: stk. | C142: 20 | D142: 6 | E142: 6
A143: Pumpeinstallation Miljøklasse A (1.000-1.500 l/s) - SRO | B143: stk. | C143: 10 | D143: 6 | E143: 6
A144: Pumpeinstallation Miljøklasse B (100-300 l/s) - Mek/EL | B144: stk. | C144: 20 | D144: 0 | E144: 0
A145: Pumpeinstallation Miljøklasse B (100-300 l/s) - SRO | B145: stk. | C145: 10 | D145: 0 | E145: 0
A146: Pumpeinstallation Miljøklasse B (300-600 l/s) - Mek/EL | B146: stk. | C146: 20 | D146: 0 | E146: 0
A147: Pumpeinstallation Miljøklasse B (300-600 l/s) - SRO | B147: stk. | C147: 10 | D147: 0 | E147: 0
A148: Pumpeinstallation Miljøklasse B (600-1.000 l/s) - Mek/EL | B148: stk. | C148: 20 | D148: 0 | E148: 0
A149: Pumpeinstallation Miljøklasse B (600-1.000 l/s) - SRO | B149: stk. | C149: 10 | D149: 0 | E149: 0
A150: Pumpeinstallation Miljøklasse B (1.000-1.500 l/s) - Mek/EL | B150: stk. | C150: 20 | D150: 0 | E150: 0
A151: Pumpeinstallation Miljøklasse B (1.000-1.500 l/s) - SRO | B151: stk. | C151: 10 | D151: 0 | E151: 0
A152: Overbygning | B152: m2 | C152: 75 | D152: 198 | E152: 198
A153: Store pumpestationer: inkl. SRO-anlæg - City | D153: 0 | E153: 0
A154: Kælder | B154: m2 | C154: 75 | D154: 0 | E154: 0
A155: Pumpeinstallation Miljøklasse A (100-300 l/s) - Mek/EL | B155: stk. | C155: 20 | D155: 0 | E155: 0
A156: Pumpeinstallation Miljøklasse A (100-300 l/s) - SRO | B156: stk. | C156: 10 | D156: 0 | E156: 0
A157: Pumpeinstallation Miljøklasse A (300-600 l/s) - Mek/EL | B157: stk. | C157: 20 | D157: 0 | E157: 0
A158: Pumpeinstallation Miljøklasse A (300-600 l/s) - SRO | B158: stk. | C158: 10 | D158: 0 | E158: 0
A159: Pumpeinstallation Miljøklasse A (600-1.000 l/s) - Mek/EL | B159: stk. | C159: 20 | D159: 0 | E159: 0
A160: Pumpeinstallation Miljøklasse A (600-1.000 l/s) - SRO | B160: stk. | C160: 10 | D160: 0 | E160: 0
A161: Pumpeinstallation Miljøklasse A (1.000-1.500 l/s) - Mek/EL | B161: stk. | C161: 20 | D161: 0 | E161: 0
A162: Pumpeinstallation Miljøklasse A (1.000-1.500 l/s) - SRO | B162: stk. | C162: 10 | D162: 0 | E162: 0
A163: Pumpeinstallation Miljøklasse B (100-300 l/s) - Mek/EL | B163: stk. | C163: 20 | D163: 0 | E163: 0
A164: Pumpeinstallation Miljøklasse B (100-300 l/s) - SRO | B164: stk. | C164: 10 | D164: 0 | E164: 0
A165: Pumpeinstallation Miljøklasse B (300-600 l/s) - Mek/EL | B165: stk. | C165: 20 | D165: 0 | E165: 0
A166: Pumpeinstallation Miljøklasse B (300-600 l/s) - SRO | B166: stk. | C166: 10 | D166: 0 | E166: 0
A167: Pumpeinstallation Miljøklasse B (600-1.000 l/s) - Mek/EL | B167: stk. | C167: 20 | D167: 0 | E167: 0
A168: Pumpeinstallation Miljøklasse B (600-1.000 l/s) - SRO | B168: stk. | C168: 10 | D168: 0 | E168: 0
A169: Pumpeinstallation Miljøklasse B (1.000-1.500 l/s) - Mek/EL | B169: stk. | C169: 20 | D169: 0 | E169: 0
A170: Pumpeinstallation Miljøklasse B (1.000-1.500 l/s) - SRO | B170: stk. | C170: 10 | D170: 0 | E170: 0
A171: Overbygning | B171: m2 | C171: 75 | D171: 0 | E171: 0
A172: Store pumpestationer: inkl. SRO-anlæg - Indre city | D172: 0 | E172: 0
A173: Kælder | B173: m2 | C173: 75 | D173: 0 | E173: 0
A174: Pumpeinstallation Miljøklasse A (100-300 l/s) - Mek/EL | B174: stk. | C174: 20 | D174: 0 | E174: 0
A175: Pumpeinstallation Miljøklasse A (100-300 l/s) - SRO | B175: stk. | C175: 10 | D175: 0 | E175: 0
A176: Pumpeinstallation Miljøklasse A (300-600 l/s) - Mek/EL | B176: stk. | C176: 20 | D176: 0 | E176: 0
A177: Pumpeinstallation Miljøklasse A (300-600 l/s) - SRO | B177: stk. | C177: 10 | D177: 0 | E177: 0
A178: Pumpeinstallation Miljøklasse A (600-1.000 l/s) - Mek/EL | B178: stk. | C178: 20 | D178: 0 | E178: 0
A179: Pumpeinstallation Miljøklasse A (600-1.000 l/s) - SRO | B179: stk. | C179: 10 | D179: 0 | E179: 0
A180: Pumpeinstallation Miljøklasse A (1.000-1.500 l/s) - Mek/EL | B180: stk. | C180: 20 | D180: 0 | E180: 0
A181: Pumpeinstallation Miljøklasse A (1.000-1.500 l/s) - SRO | B181: stk. | C181: 10 | D181: 0 | E181: 0
A182: Pumpeinstallation Miljøklasse B (100-300 l/s) - Mek/EL | B182: stk. | C182: 20 | D182: 0 | E182: 0
A183: Pumpeinstallation Miljøklasse B (100-300 l/s) - SRO | B183: stk. | C183: 10 | D183: 0 | E183: 0
A184: Pumpeinstallation Miljøklasse B (300-600 l/s) - Mek/EL | B184: stk. | C184: 20 | D184: 0 | E184: 0
A185: Pumpeinstallation Miljøklasse B (300-600 l/s) - SRO | B185: stk. | C185: 10 | D185: 0 | E185: 0
A186: Pumpeinstallation Miljøklasse B (600-1.000 l/s) - Mek/EL | B186: stk. | C186: 20 | D186: 0 | E186: 0
A187: Pumpeinstallation Miljøklasse B (600-1.000 l/s) - SRO | B187: stk. | C187: 10 | D187: 0 | E187: 0
A188: Pumpeinstallation Miljøklasse B (1.000-1.500 l/s) - Mek/EL | B188: stk. | C188: 20 | D188: 0 | E188: 0
A189: Pumpeinstallation Miljøklasse B (1.000-1.500 l/s) - SRO | B189: stk. | C189: 10 | D189: 0 | E189: 0
A190: Overbygning | B190: m2 | C190: 75 | D190: 0 | E190: 0
A191: Overløbsbygværker - Land | D191: 0 | E191: 0
A192: Kælder (< 7 m2) | B192: stk. | C192: 75 | D192: 7 | E192: 7
A193: Kælder (7 - 20 m2) | B193: m2 | C193: 75 | D193: 0 | E193: 0
A194: Kælder (20 - 30 m2) | B194: m2 | C194: 75 | D194: 0 | E194: 0
A195: Installationer "ingen eller faste riste" (mindre end 7 m2) | B195: stk. | C195: 20 | D195: 7 | E195: 7
A196: Installationer "mekaniske riste og SRO" Miljøklasse A. (7-20 m2) - Mek/EL | B196: stk. | C196: 20 | D196: 0 | E196: 0
A197: Installationer "mekaniske riste og SRO" Miljøklasse A. (7-20 m2) - SRO | B197: stk. | C197: 10 | D197: 0 | E197: =+D197 -> 0
A198: Installationer "mekaniske riste og SRO" Miljøklasse A. (20-30 m2) - Mek/EL | B198: stk. | C198: 20 | D198: 0 | E198: 0
A199: Installationer "mekaniske riste og SRO" Miljøklasse A. (20-30 m2) - SRO | B199: stk. | C199: 10 | D199: 0 | E199: 0
A200: Installationer "mekaniske riste og SRO" Miljøklasse B. (7-20 m2) - Mek/EL | B200: stk. | C200: 20 | D200: 0 | E200: 0
A201: Installationer "mekaniske riste og SRO" Miljøklasse B. (7-20 m2) - SRO | B201: stk. | C201: 10 | D201: 0 | E201: 0
... 121 more rows

Sheet Fællesfunktionsanlæg
A1: Fællesfunktionsanlæg | B1: Enhed | C1: Standard-levetid | D1: Samlet mængde per 31/12-2014 | E1: Samlet mængde per 31/12-2015 | F1: Bemærk-ninger
A4: Andre
A5: Administrationbygninger | B5: m2 | C5: 75 | D5: 1621 | E5: =+D5 -> 1621
A6: Arbejdsplads og kontor | B6: stk. | C6: 5 | D6: 20 | E6: =+D6 -> 20
A7: Køretøjer, personbil | B7: stk. | C7: 5 | D7: 0 | E7: =+D7 -> 0
A8: Køretøjer, små lastvogne (< 3.500 kg.) | B8: stk. | C8: 5 | D8: 11 | E8: =+D8+1 -> 12
A9: Køretøjer, store lastvogne (> 3.500 kg.) | B9: stk. | C9: 5 | D9: 1 | E9: 1
A10: Køretøjer, entreprenørmaskiner | B10: stk. | C10: 5 | D10: 7 | E10: 7
A11: Slamsugere | B11: stk. | C11: 5 | D11: 0 | E11: 0
A12: Værksteder, garager | B12: m2 | C12: 75 | D12: 1500 | E12: =+D12+100 -> 1600
A13: Øvrige
A14: Solcelleanlæg | B14: KWh | C14: 25 | D14: 0
A15: EDB, tablets og navigationsudstyr | B15: stk. | C15: 5 | D15: 0
A16: Elektroniske kort | B16: stk. | C16: 5 | D16: 0

Sheet Drop downliste
B2: datakvalitet | C2: Serviceselskab | D2: Overheads | E2: Infrastrukturomlægninger | F2: Infrastruktur per år | G2: år 1 | H2: år 2 | I2: år 3 | J2: år 4 | K2: år 5
G3: 2010 | H3: 2011 | I3: 2012 | J3: 2013 | K3: 2014
B4: 1 | C4: ja | D4: Full-cost | E4: ja | F4: 0.1
B5: 2 | C5: nej | D5: Direct-cost | E5: nej | F5: 0.2
B6: 3 | D6: Nøgletalsfordeling | F6: 0.3
D7: Activity based cost | F7: 0.4
D8: Andet | F8: 0.5
F9: 0.6
F10: 0.7
F11: 0.8
F12: 0.9
F13: 1
